Cogmind - Beta 10.2 @@@ ROGUE MODE // 2020.12.27 @ 21:01:13 Player: WeirdFoe Result: Self-destructed Performance ------------- Evolutions (1) 500 Regions Visited (3) 600 Robots Destroyed (10) 50 Value Destroyed (224) 224 Prototype IDs (1) 20 Alien Tech Used (0) 0 Bonus (15) 15 TOTAL SCORE: 1409 Bonus ------- Follower Combat Kills 39 Friendly Fire -24 Cogmind --------- Core Integrity 349/400 Matter 300/300 Energy 250/250 System Corruption 3% Temperature Cool (0) Movement Treading (220) Ox3 Location -9/Mines Parts ------- > --- POWER (1) -------- Ion Engine > --- PROPULSION (2) --- Light Treads > --- UTILITY (4) ------ Small Storage Unit Large Storage Unit High-capacity Storage Unit Improved Light Armor Plating > --- WEAPON (2) ------- Advanced Beam Cannon Assault Rifle > --- INVENTORY (20) --- Light Ion Engine Light Treads Aluminum Leg Aluminum Leg Small Storage Unit Tractor Beam Light Assault Rifle Light Assault Rifle Light Assault Rifle Mini Grenade Launcher Peak State ------------ > --- POWER ------------ Light Ion Engine > --- PROPULSION ------- Light Treads Light Treads > --- UTILITY ---------- Large Storage Unit High-capacity Storage Unit ECM Suite Medium Armor Plating > --- WEAPON ----------- Advanced Beam Cannon Assault Rifle > --- INVENTORY -------- Ion Engine Light Ion Engine Aluminum Leg Aluminum Leg Small Storage Unit Small Laser Light Assault Rifle Light Assault Rifle Light Assault Rifle Grenade Launcher [Rating: 13] Favorites ----------- Power Light Ion Engine Engine Light Ion Engine Propulsion Light Treads Treads Light Treads Leg Aluminum Leg Utility High-capacity Storage Unit Device ECM Suite Storage High-capacity Storage Unit Protection Medium Armor Plating Weapon Assault Rifle Energy Gun Small Laser Energy Cannon Advanced Beam Cannon Ballistic Gun Assault Rifle Launcher Grenade Launcher Build | -11 -10 -9 -9 ------- Run | Scr Mat Mat Min Slots Evolved 2 | . . 2 . Power . | . . . . Propulsion . | . . . . Utility 2 | . . 2 . Weapon . | . . . . Parts Attached 22 | 6 3 6 7 Power 3 | 1 . 1 1 Engine 3 | 1 . 1 1 Core . | . . . . Reactor . | . . . . Propulsion 4 | 2 1 1 . Treads 2 | . 1 1 . Leg 2 | 2 . . . Wheel . | . . . . Hover . | . . . . Flight . | . . . . Utility 7 | 1 2 2 2 Device 1 | . . 1 . Storage 4 | 1 2 . 1 Processor . | . . . . Hackware . | . . . . Protection 2 | . . 1 1 Artifact . | . . . . Weapon 8 | 2 . 2 4 Energy Gun 1 | . . . 1 Energy Cannon 2 | . . 1 1 Ballistic Gun 4 | 2 . 1 1 Ballistic Cannon . | . . . . Launcher 1 | . . . 1 Special Weapon . | . . . . Impact Weapon . | . . . . Slashing Weapon . | . . . . Piercing Weapon . | . . . . Special Melee Weapon . | . . . . Unidentified Prototypes 1 | . . 1 . Parts Lost 6 | . . . 6 Power 1 | . . . 1 Propulsion 1 | . . . 1 Utility 1 | . . . 1 Weapon 3 | . . . 3 Highest Loss Streak 6 | . . . 6 Average Slot Usage (%) 93 | . 96 93 85 Engine 11 | . 14 11 11 Treads 13 | . 3 17 14 Leg 9 | . 24 4 . Device 6 | . . 8 7 Storage 23 | . 24 22 25 Protection 5 | . . 7 5 Energy Cannon 4 | . . 6 7 Ballistic Gun 18 | . 28 15 12 Naked Turns . | . . . . Heaviest Build 66 | 10 54 65 66 Greatest Support 40 | 20 20 40 40 Greatest Overweight (x) 3 | . 2 3 3 Average Overweight (x) 1 | . 1 1 2 Largest Inventory Capacity 20 | 6 18 18 20 Average Capacity 16 | 4 14 18 18 Most Carried 13 | 4 7 13 13 Average Carried 8 | 1 5 9 10 Final Capacity 20 | 6 18 18 20 Final Carried 13 | 4 7 13 10 Class Distribution -------------------- 94% | Mutant 5% | Hauler-Mutant Dominant Class ---------------- Mutant | -10/Materials Mutant | -9/Materials Mutant | -9/Mines Resources | -11 -10 -9 -9 ----------- Run | Scr Mat Mat Min Matter Collected 571 | 111 161 182 117 Remotely . | . . . . Salvage Created 369 | . 16 253 100 Parts 21 | . 3 15 3 Haulers Intercepted . | . . . . Recyclers Shooed . | . . . . Parts Field Recycled . | . . . . Retrieved Matter . | . . . . Parts Self-Destructed . | . . . . Prevented . | . . . . Kills | -11 -10 -9 -9 ------- Run | Scr Mat Mat Min Combat Hostiles Destroyed 13 | . . 6 7 Guns 5 | . . 4 1 Cannons 2 | . . 2 . AOE 6 | . . . 6 Classes Destroyed 7 | . 1 4 2 Recycler 2 | . . 1 1 Watcher 1 | . 1 . . Swarmer 3 | . . 3 . Grunt 2 | . . 2 . Sentry 1 | . . 1 . Demolisher 1 | . . . 1 Assembled 6 | . . . 6 Best Kill Streak 8 | . 1 2 8 Combat Bots Only 7 | . . 2 7 Max Kills in Single Turn 4 | . 1 1 4 Gunslinging . | . . . . Exploded 4 | . . . 4 Melee . | . . . . Uniques/NPCs Destroyed . | . . . . Combat | -11 -10 -9 -9 -------- Run | Scr Mat Mat Min Damage Taken 843 | . . 349 494 Core 51 | . . 51 . Absorbed by Shields . | . . . . Core Remaining (%) 100 | 100 100 . . Volleys Fired 35 | . 8 20 7 Largest 2 | . 2 2 2 Hottest 88 | . 40 88 88 Shots Fired 69 | . 16 40 13 Gun 53 | . 16 31 6 Cannon 12 | . . 9 3 Launcher 4 | . . . 4 Special . | . . . . Kinetic 52 | . 16 31 5 Thermal 13 | . . 9 4 Explosive 4 | . . . 4 Electromagnetic . | . . . . Robot Hit Streak 11 | . 2 11 2 Robot Miss Streak 10 | . 8 10 1 Penetration Max . | . . . . Secondary Targets . | . . . . Shots Hit Robots 33 | . 3 25 5 Core Hits 33 | . 2 10 21 Critical Hits 3 | . . 2 1 Critical Kills 3 | . . 2 1 Critical Parts Destroyed . | . . . . Melee Attacks . | . . . . Impact . | . . . . Slashing . | . . . . Piercing . | . . . . Sneak Attacks . | . . . . Combat Hostiles . | . . . . Follow-up Attacks . | . . . . Damage Inflicted 902 | 9 65 304 524 Guns 265 | . 52 175 38 Cannons 163 | . . 123 40 Explosions 446 | . . . 446 Melee . | . . . . Ramming 28 | 9 13 6 . Kinetic 265 | . 52 175 38 Thermal 163 | . . 123 40 Explosive 446 | . . . 446 Electromagnetic . | . . . . Impact . | . . . . Slashing . | . . . . Piercing . | . . . . Highest Corruption 3 | . . . 3 Average Corruption 3 | . . . 3 Corruption Purged . | . . . . Effects 3 | . . . 3 Message Errors 1 | . . . 1 Matter Fused 1 | . . . 1 Energy Discharges 1 | . . . 1 Overload Shots . | . . . . Overflow Damage 19 | . . . 19 Projectiles . | . . . . Explosions 19 | . . . 19 Melee . | . . . . Knockbacks . | . . . . Impact . | . . . . Kinetic . | . . . . Secondary . | . . . . Self-Inflicted Damage 150 | . . . 150 Shots 4 | . . . 4 Rammed 1 | . . 1 . Targets Rammed 3 | 1 1 1 . Kicked 2 | 1 1 . . Crushed . | . . . . Highest Temperature 135 | . . 135 24 Average Temperature 58 | . . 70 12 Received Heat Transfer 105 | . . 105 . Siege Activations . | . . . . Robots Corrupted . | . . . . Combat Hostiles . | . . . . Parts Fried . | . . . . Impact Corruptions . | . . . . Robots Melted . | . . . . Combat Hostiles . | . . . . Parts Melted 1 | . . 1 . Heat Transferred 296 | . . 222 74 Parts Sabotaged . | . . . . Parts Stolen . | . . . . Parts Stripped . | . . . . Power Chain Reactions . | . . . . Missiles Intercepted . | . . . . Alert | -11 -10 -9 -9 ------- Run | Scr Mat Mat Min Peak Influence 235 | . 60 235 58 Initial 43 | . . 25 43 Average 73 | . 44 100 46 Maximum Alert Level 1 | . . 1 . Low Security (%) 91 | 100 100 84 100 Level 1 8 | . . 15 . Level 2 . | . . . . Level 3 . | . . . . Level 4 . | . . . . Level 5 . | . . . . High Security . | . . . . Max Security . | . . . . Squads Dispatched 1 | . 1 . . Investigation . | . . . . Extermination . | . . . . Reinforcement 1 | . 1 . . Assault . | . . . . Garrison . | . . . . Intercept . | . . . . Construction Impeded . | . . . . Haulers Reinforced . | . . . . Stealth | -11 -10 -9 -9 --------- Run | Scr Mat Mat Min Distress Signals 1 | . . 1 . Communications Jammed . | . . . . Distress Signals . | . . . . Times Spotted 33 | . 4 13 16 Peak Tracking Total 12 | . 1 6 12 Tactical Retreats 4 | . . 4 . Traps | -11 -10 -9 -9 ------- Run | Scr Mat Mat Min Traps Triggered . | . . . . Indirectly . | . . . . Trap Hack Attempts . | . . . . Triggered . | . . . . Disarmed . | . . . . Reprogrammed . | . . . . Reused . | . . . . Traps Extracted . | . . . . Installed . | . . . . Triggered . | . . . . Machines | -11 -10 -9 -9 ---------- Run | Scr Mat Mat Min Machines Disabled . | . . . . Max in Single Turn . | . . . . Machines Sabotaged . | . . . . Garrisons Compromised . | . . . . Overloaded Fab Kills . | . . . . Fab Network Shutdowns . | . . . . Hacking | -11 -10 -9 -9 --------- Run | Scr Mat Mat Min Machines Accessed 4 | . 1 3 . Terminals 4 | . 1 3 . Fabricators . | . . . . Repair Stations . | . . . . Recycling Units . | . . . . Scanalyzers . | . . . . Garrison Access . | . . . . Total Hacks 7 | . 2 5 . Successful 3 | . 2 1 . Failed 4 | . . 4 . Catastrophic 2 | . . 2 . Database Lockouts . | . . . . Manual 6 | . 1 5 . Terminals 7 | . 2 5 . Fabricators . | . . . . Repair Stations . | . . . . Recycling Units . | . . . . Scanalyzers . | . . . . Garrison Access . | . . . . Terminal Hacks 3 | . 2 1 . Record 1 | . 1 . . Branch Access Points 2 | . 1 1 . Fabricator Hacks . | . . . . Repair Station Hacks . | . . . . Recycling Unit Hacks . | . . . . Scanalyzer . | . . . . Garrison Access Hacks . | . . . . Unauthorized Hacks . | . . . . Terminals . | . . . . Fabricators . | . . . . Repair Stations . | . . . . Recycling Units . | . . . . Scanalyzers . | . . . . Garrison Access . | . . . . Data Cores Recovered . | . . . . Used . | . . . . Hacking Detections 3 | . 1 2 . Full Trace Events 1 | . . 1 . Feedback Events . | . . . . Feedback Blocked . | . . . . Robot Schematics Acquired . | . . . . Robots Built . | . . . . Matter . | . . . . Time . | . . . . Total Robot Build Rating . | . . . . Part Schematics Acquired . | . . . . Parts Built . | . . . . Matter . | . . . . Time . | . . . . Total Part Build Rating . | . . . . Parts Repaired . | . . . . Time . | . . . . Parts Recycled . | . . . . Recycled Matter . | . . . . Retrieved Matter . | . . . . Retrieved Components . | . . . . Parts Scanalyzed . | . . . . Part Schematics Acquired . | . . . . Parts Damaged . | . . . . Bothacking | -11 -10 -9 -9 ------------ Run | Scr Mat Mat Min Used RIF Installer . | . . . . Robots Hacked . | . . . . Non-combat . | . . . . Combat . | . . . . Robot Hacks Applied . | . . . . Relay Couplers Released . | . . . . Robots Rewired . | . . . . Allies Hacked . | . . . . Hacks Repelled . | . . . . Allies | -11 -10 -9 -9 -------- Run | Scr Mat Mat Min Total Allies 1 | . . . 1 Largest Group 1 | . . . 1 Highest-Rated Group 31 | . . . 31 Highest-Rated Ally 31 | . . . 31 Total Orders . | . . . . Ally Attacks 14 | . . . 14 Total Damage 215 | . . . 215 Kills 3 | . . . 3 Allies Corrupted . | . . . . Allies Melted . | . . . . Intel | -11 -10 -9 -9 ------- Run | Scr Mat Mat Min Robot Analysis Total . | . . . . Derelict Logs Recovered . | . . . . Drone Launches . | . . . . Drone Recoveries . | . . . . Exploration | -11 -10 -9 -9 ------------- Run | Scr Mat Mat Min Turns Passed 931 | 52 227 514 138 Spaces Moved 414 | 36 122 203 53 Core 6 | 6 . . . Treads 279 | . 23 203 53 Legs 129 | 30 99 . . Wheels . | . . . . Hover . | . . . . Flight . | . . . . Fastest Speed 50 | 50 120 180 180 Average Speed 176 | 108 162 190 200 Slowest Speed 220 | 120 200 220 220 Overloaded Moves . | . . . . Propulsion Burnouts . | . . . . Robots Hopped . | . . . . Cave-ins Triggered . | . . . . Exploration Rate (%) 19 | 3 32 21 23 Regions Visited 3 Branch Regions 1 Pre-discovered Areas 1 | . . . 1 Known Exits Taken 1 | . . 1 . Unknown Exits Taken 2 | 1 1 . . Scrap Searched 1 | . . . 1 Spaces Dug 8 | . . . 8 Terrain Destroyed 24 | . . . 24 Melee . | . . . . Projectile . | . . . . AOE 24 | . . . 24 Terrain Rammed . | . . . . Walls Destroyed . | . . . . Machines Disabled . | . . . . Actions | -11 -10 -9 -9 --------- Run | Scr Mat Mat Min Total 539 | 46 135 289 69 Wait 53 | . . 53 . Move 412 | 36 121 202 53 Hop . | . . . . Pick Up 11 | 4 2 4 1 Fast Attach 13 | 6 1 4 2 Attach 5 | . . 1 4 Detach 2 | . . 2 . Swap 4 | . 2 1 1 Drop 2 | . . 1 1 Fire 35 | . 8 20 7 Melee . | . . . . Ram . | . . . . Kick 1 | . 1 . . Crush 1 | . . 1 . Escape Stasis . | . . . . Rewire . | . . . . Trap . | . . . . Miscellaneous . | . . . . Route ------- -11/Scrapyard -10/Materials (discovered 2 exits: *Mat / Min) -9/Materials (discovered 2 exits: *Min x2) -9/Mines History --------- Turn | Location | Event 5 | -11/Scrapyard | Discovered new exit (range 15) 53 | -11/Scrapyard | Entered Materials 188 | -10/Materials | Identified exit to Mines 219 | -10/Materials | Discovered new exit (range 16) 280 | -10/Materials | Entered another Materials area 280 | -9/Materials | Evolved 2 slots: Utility x2 328 | -9/Materials | Build established: Mutant 763 | -9/Materials | Identified exit to Mines 794 | -9/Materials | Entered Mines 795 | -9/Mines | Learned location of Storage (-8) 802 | -9/Mines | Met a Derelict bent on vengeance 804 | -9/Mines | Assembled infested the area 809 | -9/Mines | Assisted by a Guerilla fighting off Assembled 829 | -9/Mines | Met a Derelict testing a Signal Generator 872 | -9/Mines | Lost 6 parts (1p1n1u3w) 875 | -9/Mines | Destroyed 7 combat bots 932 | -9/Mines | Self-destructed Last Messages --------------- 00884_ U-05 Engineer lays Concrete. 00885_ System corrupted: Energy discharge (-67). 00885_ U-05 Engineer builds a Wall. 00887_ The unstable cave ceiling collapses. 00889_ U-05 Engineer lays Concrete. 00891_ The unstable cave ceiling collapses. 00892_ Acquired 17 matter. 00892_ U-05 Engineer builds a Wall. 00896_ U-05 Engineer lays Concrete. 00896_ Dropped ECM Suite. 00897_ The unstable cave ceiling collapses. 00897_ Acquired Imp. Light Armor Plating. 00897_ U-05 Engineer lays Concrete. 00899_ U-05 Engineer builds a Wall. 00902_ Acquired 5 matter. 00903_ J,600ON89FVUNAIH OCX 00905_ R-06 Scavenger collects Imp. Terrain Scanner. 00914_ as-37403 destroyed. 00914_ R-06 Scavenger collects Shock Absorption System. 00930_ Acquired 9 matter. Map ----- +----------------------------------------------------+ | ????????????????????????????????????????? | | ????????????????????????????????????????? | | ????????????????????????????????????????? | | ????????????????????????????????????????? | | ????????????????????????????????????????? | | ??????????????????? ?????????????????##?? | | ??????????????????# ??????????????? ##? | | ??????????????????# ??????????????? #? | | ??????????????????# ??????????????? #? | | ??????????????????# #?????????????? #? | | ??????????????#???# #?????????????? #? | | ????????????? ???# #?????????????? ## | | ????????????? ???# #?????????????? # | | ?????????????# ???# #??????#####?## # | | ?????????????# ??# #??##### ### | | ?????????????# ??# ##?# # % | | ?????????????# ??# ### # # # | | ?????????????#$ ??# # | | ?????????????# ?## #? | | ?????????????# ?# ## # = ###? | | ?????????????# ## ## ! %* ##??? | | ?????????????# # ### # ! !##??? | | ????????????## ##?#### # #### | | ???????????## ####?????## # # | | ???????????# g ##????????### # | | ???????????# @ #?????????# # | | ???????????## #?????????# # | | ????????????# <##????????## # # # | | ????????????# ##?????????# ] # ### | | ????????????#= #???????????# ! # #?? | | ????????????#%*????????????# # #####?? | | ????????????#= ????????????# #?? | | ????????????# ?????????????# ##? | | ????????????# ?????????????### ## | | ????????????# ???????????????##### # | | ???????????? ????????????????????## | | ????????????#?????????????????????### | | ????????????????????????????????????## # | | ?????????????????????????????????????# # | | ?????????????????????????????????????# | | ?????????????????????????????????????# | | ?????????????????????????????????????## | | ???????????????????????????????????????## | | ????????????????????????????????????????? | | ????????????????????????????????????????? | | ????????????????????????????????????????? | | ????????????????????????????????????????? | | ????????????????????????????????????????? | | ????????????????????????????????????????? | | ????????????????????????????????????????? | +----------------------------------------------------+ Best States ------------- Heat Dissipation 28 Energy Generation 10 Energy Capacity 250 Matter Stores 300 Matter Capacity 300 Sight Range 16 Terrain Scan Density 10 ECM Strength 1 Armor Coverage 225 Evasion (%) 40 Recoil Reduction 2 Item Schematics ----------------- None Robot Schematics ------------------ None Fabricated ------------ Nothing Alien Tech Used ----------------- None Achievements -------------- None Challenges ------------ None Game ------ Seed BehemothSwarmSlayer Manual? 0 Play Time 00:14:37 Cumulative 13.4 hours Start 2020.12.25 @ 18:19:22 End 2020.12.27 @ 21:01:13 Sessions 5 Manual Loads 0 Difficulty Rogue Special Mode None Game No. 19 Rogue 19 Adventurer 0 Explorer 0 Win Type - Total 0 Types 0/0/0/0/0/0/0/0/0 Lore% 12 Gallery% 30 Achievement% 19 Wizard Run 0 Options --------- ASCII 0 Keyboard 0 Movement Numpad Keybinds 0 Fullscreen 1 Font 18/X11 Map View 76x50 Tactical HUD 1 Map Filters NONE Filters NONE Steam 0 RUN: 66236251-81cf-4e03-afa7-9ccd387e6c4b